{"text_format":"1","workbook":"xlsx","n_sheets":2,"sheets":["Pasiūlymas","Subtiekėjai ir priedai"],"not_rendered":{"charts":0,"images":0,"macros":1,"external_links":0,"defined_names":0,"comments":0,"pivot_tables":0},"unopened":[],"bounds":{"document_bytes":16777216,"sheet_cells":100000,"rows_first":2000,"rows_last":500,"rows_between":2000,"halvings":0,"cell_chars":16384,"cell_head_chars":4096},"cells_cut":0,"cells_raw":0,"read":"whole","date_system":"1900"}

{"sheet":"Pasiūlymas","index":0,"n_rows":123,"n_cols":10,"rows_kept":123,"cut":false,"hidden":false,"merged":[[17,0,17,1],[17,2,17,5],[14,0,14,1],[14,2,14,5],[15,0,15,1],[15,2,15,5],[16,0,16,1],[16,2,16,5],[11,0,11,1],[11,2,11,5],[12,0,12,1],[12,2,12,5],[13,0,13,1],[13,2,13,5],[18,0,18,1],[18,2,18,5],[23,0,23,5],[19,0,19,1],[20,0,20,1],[19,2,19,5],[20,2,20,5],[22,0,22,5],[30,0,31,5],[27,0,27,5],[28,0,28,5],[24,0,24,5],[25,0,25,5],[26,0,26,5],[29,0,29,2],[29,3,29,5]]}
[]
["PIKIMO SĄLYGŲ PRIEDAS \"PASIŪLYMO FORMA\"",null,null,null,null,"Pirkimo sąlygų \n2 priedas"]
[]
["MEDICINOS ĮRANGA"]
[]
["Kam:","Gynybos resursų agentūra prie KAM"]
[]
["Data:","2022-06-27"]
["Nr.:",60227]
["Vieta:","Kaunas"]
[]
["Tiekėjo pavadinimas / Ūkio subjektų grupės nariai:",null,"Lietuvos ir Šveicarijos UAB Hospitex Diagnostics Kaunas"]
["Tiekėjo kodas (-ai):",null,110747425]
["Tiekėjo adresas (-ai):",null,"Antagynės g. 1, LT-47164 Kaunas"]
["Tiekėjo PVM mokėtojo kodas(-ai):",null,"LT107474219"]
["Tiekėjo / Ūkio subjektų grupės atsakingo partnerio sąskaitos numeris, banko pavadinimas ir banko kodas (-ai):"]
["Asmens atsakingo už pasiūlymą vardas, pavardė:",null,"Direktorius Algis Bakutis"]
["Asmens atsakingo už pasiūlymą telefono numeris, el. pašto adresas:",null,"8 37 363056, info@hospitex.lt"]
["Tiekėjo / Ūkio subjektų grupės, laimėjimo atveju, pasirašančio sutartį asmens vardas, pavardė, pareigos:",null,"Direktorius Algis Bakutis"]
["Tiekėjo / Ūkio subjektų grupės, laimėjimo atveju, už sutarties vykdymą atsakingo asmens vardas, pavardė, telefono numeris, elektroninio pašto adresas:"]
["(1) Tiekėjo / Ūkio subjektų grupės narių, (2) ūkio subjektų, kurių pajėgumais remiamasi, ir (3) jei pašalinimo pagrindai taikomi visiems subtiekėjams - subtiekėjų, kolegialaus priežiūros organo (Stebėtojų tarybos) ir (ar) kolegialaus valdymo organo (Valdybos) narių sąrašas (jei sudaryta) ir (ar) asmuo, kuriam suteikti VPĮ 46 str. 2 d. 2 p. numatyti įgaliojimai",null,null,null,null,null,{"$f":"IF((SUMPRODUCT(--(C21=\"\"))>0), \"Privaloma užpildyti, kai taikomi pašalinimo pagrindai\", \"\")","v":"Privaloma užpildyti, kai taikomi pašalinimo pagrindai"}]
[]
["Tiekėjo patvirtinimai:"]
["1. Šiuo pasiūlymu pažymime, kad sutinkame su visomi pirkimo sąlygomis, nustatytomis:"]
["1.1. viešojo pirkimo dokumentuose"]
["1.2. kituose pirkimo dokumentuose (jų paaiškinimuose, papildymuose)."]
["2. Patvirtiname, kad informacija ir duomenys, pateikti pasiūlyme, yra teisingi ir apima viską, ko reikia tinkamam sutarties įvykdymui"]
["3. Patvirtiname, kad jei pasiūlyme nenurodyti kolegialaus priežiūros/valdymo organų nariai, šie organai juridiniuose asmenyse nėra sudaryti (taikoma, kai pirkimo dokumentuose nustatyti pašalinimo pagrindai)."]
["4. Pasiūlymas galioja iki termino, nustatyto pirkimo dokumentuose."]
["5. Tais atvejais, kai pagal galiojančius teisės aktus tiekėjui nereikia mokėti PVM, jis nurodo priežastis, dėl kurių PVM nemoka:"]
["6. Tiekėjas kainas pateikia, nurodydamas ne daugiau skaičių po kablelio, nei leidžiama pirkimo dokumentuose (užpildomi visi neužtušuoti langeliai)."]
[]
[]
["1. DALIS","DEFIBRILIATORIUS, AUTOMATINIS"]
[]
["Tiekėjo pasiūlymas:"]
["Nr.","Pavadinimas","Mato vienetas","Kiekis","Siūloma reikšmė ekonominio naudingumo balui nustatyti (pagal mato vienetą arba Taip/Ne) ","Prekės pavadinimas, kodas/modelis","Gamintojas, šalis","1 vnt. kaina be PVM, Eur","Suma be PVM, Eur"]
["1.","Defibriliatorius, automatinis"]
["1.1.","Defibriliatorius, automatinis","vnt.",15,null,"Lifepak 1000","Physio Control, JAV",2475,{"$f":"IF(ISBLANK(H39),\"\", PRODUCT(D39,H39))","v":37125}]
["1.1.1.","Galimybė nustatyti gaivinimo trukmę pasirinktinai pagal LR galiojantį gaivinimo algoritmą 60, 90, 120 ir 180 s. ","TAIP/NE",null,"Taip"]
["1.1.2.","Bifazinio impulso energijos nustatymo reikšmės.  ","J",null,"2-360 J"]
["1.1.3.","Garsinės patariamosios gaivinimo funkcijos kalba - lietuvių","TAIP/NE",null,"Taip"]
["1.1.4.","Galimybė EKG analizės programą, įjungti ir tam skirtu mygtuku (ne tik automatiškai).","TAIP/NE",null,"Taip"]
["1.1.5.","Ekrane pateikiamas likęs gaivinimo laikas","TAIP/NE",null,"Taip"]
["1.1.6.","Garantinis laikotarpis","mėn.",null,"96 mėn."]
[null,null,null,null,null,null,null,"Suma be PVM",{"$f":"IF((COUNT(D39:D45)<>COUNT(I39:I45)),\"\", SUM(I39:I45))","v":37125},{"$f":"IF((COUNT(D39:D45)<>COUNT(I39:I45)),\"Neužpildytos visų objektų kainos\", \"\")","v":""}]
[null,null,null,null,null,null,null,"PVM suma",7796.25]
[null,null,null,null,null,null,null,"Suma su PVM",{"$f":"IF(ISBLANK(I47), \"\", SUM(I46:I47))","v":44921.25}]
[]
[]
[]
["2. DALIS","ANALIZATORIUS KRAUJO, PORTATYVINIS SU PRIEDAIS"]
[]
["Tiekėjo pasiūlymas:"]
["Nr.","Pavadinimas","Mato vienetas","Kiekis","Siūloma reikšmė ekonominio naudingumo balui nustatyti (pagal mato vienetą arba Taip/Ne) ","Prekės pavadinimas, kodas/modelis","Gamintojas, šalis","1 vnt. kaina be PVM, Eur","Suma be PVM, Eur"]
["2.","Analizatorius kraujo, portatyvinis su priedais"]
["2.1.","Analizatorius kraujo, portatyvinis","vnt.",3,null,null,null,null,{"$f":"IF(ISBLANK(H57),\"\", PRODUCT(D57,H57))","v":""}]
["2.1.1.","Garantija","mėn."]
["2.2.","Kasetė (kartridžas) kraujo dujų analizei ir laktatams","vnt.",150,null,null,null,null,{"$f":"IF(ISBLANK(H59),\"\", PRODUCT(D59,H59))","v":""}]
["2.3.","Kasetė (kartridžas) elektrolitams ir biochemijai","vnt.",150,null,null,null,null,{"$f":"IF(ISBLANK(H60),\"\", PRODUCT(D60,H60))","v":""}]
["2.4.","Kasetė (kartridžas) hematologijai","vnt.",150,null,null,null,null,{"$f":"IF(ISBLANK(H61),\"\", PRODUCT(D61,H61))","v":""}]
["2.5.","Kasetė (kartridžas) krešumo faktoriaus nustatymui","vnt.",150,null,null,null,null,{"$f":"IF(ISBLANK(H62),\"\", PRODUCT(D62,H62))","v":""}]
["2.6.","Kasetė (kartridžas) kardiomarkerio nustatymui","vnt.",150,null,null,null,null,{"$f":"IF(ISBLANK(H63),\"\", PRODUCT(D63,H63))","v":""}]
[null,null,null,null,null,null,null,"Suma be PVM",{"$f":"IF((COUNT(D57:D63)<>COUNT(I57:I63)),\"\", SUM(I57:I63))","v":""},{"$f":"IF((COUNT(D57:D63)<>COUNT(I57:I63)),\"Neužpildytos visų objektų kainos\", \"\")","v":"Neužpildytos visų objektų kainos"}]
[null,null,null,null,null,null,null,"PVM suma"]
[null,null,null,null,null,null,null,"Suma su PVM",{"$f":"IF(ISBLANK(I65), \"\", SUM(I64:I65))","v":""}]
[]
[]
[]
["3. DALIS","DIRBTINĖS PLAUČIŲ VENTILIACIJOS APARATAS, NEŠIOJAMAS"]
[]
["Tiekėjo pasiūlymas:"]
["Nr.","Pavadinimas","Mato vienetas","Kiekis","Siūloma reikšmė ekonominio naudingumo balui nustatyti (pagal mato vienetą arba Taip/Ne) ","Prekės pavadinimas, kodas/modelis","Gamintojas, šalis","1 vnt. kaina be PVM, Eur","Suma be PVM, Eur"]
["3.","Dirbtinės plaučių ventiliacijos aparatas, nešiojamas"]
["3.1.","Dirbtinės plaučių ventiliacijos aparatas, nešiojamas","vnt.",22,null,null,null,null,{"$f":"IF(ISBLANK(H75),\"\", PRODUCT(D75,H75))","v":""}]
["3.1.1.","DPV aparato svoris be papildomų priedų, su baterija ","kg"]
["3.1.2.","Patariamoji garsinė metronomo funkcija, krūtinės ląstos paspaudimų ir įkvėpimo dažnio vedlys. ","TAIP/NE"]
[null,null,null,null,null,null,null,"Suma be PVM",{"$f":"IF((COUNT(D75:D77)<>COUNT(I75:I77)),\"\", SUM(I75:I77))","v":""},{"$f":"IF((COUNT(D75:D77)<>COUNT(I75:I77)),\"Neužpildytos visų objektų kainos\", \"\")","v":"Neužpildytos visų objektų kainos"}]
[null,null,null,null,null,null,null,"PVM suma"]
[null,null,null,null,null,null,null,"Suma su PVM",{"$f":"IF(ISBLANK(I79), \"\", SUM(I78:I79))","v":""}]
[]
[]
[]
["4. DALIS","STALIUKAS, INSTRUMENTINIS, MAYO"]
[]
["Tiekėjo pasiūlymas:"]
["Nr.","Pavadinimas","Mato vienetas","Kiekis","Siūloma reikšmė ekonominio naudingumo balui nustatyti (pagal mato vienetą arba Taip/Ne) ","Prekės pavadinimas, kodas/modelis","Gamintojas, šalis","1 vnt. kaina be PVM, Eur","Suma be PVM, Eur"]
["4.","Staliukas, instrumentinis, Mayo"]
["4.1.","Staliukas, instrumentinis, Mayo","vnt.",4,null,null,null,null,{"$f":"IF(ISBLANK(H89),\"\", PRODUCT(D89,H89))","v":""}]
["4.1.1.","Apkrova","kg"]
["4.1.2.","Garantija","mėn."]
[null,null,null,null,null,null,null,"Suma be PVM",{"$f":"IF((COUNT(D89:D91)<>COUNT(I89:I91)),\"\", SUM(I89:I91))","v":""},{"$f":"IF((COUNT(D89:D91)<>COUNT(I89:I91)),\"Neužpildytos visų objektų kainos\", \"\")","v":"Neužpildytos visų objektų kainos"}]
[null,null,null,null,null,null,null,"PVM suma"]
[null,null,null,null,null,null,null,"Suma su PVM",{"$f":"IF(ISBLANK(I93), \"\", SUM(I92:I93))","v":""}]
[]
[]
[]
["5. DALIS","SISTEMA, DEGUONIES TIEKIMO"]
[]
["Tiekėjo pasiūlymas:"]
["Nr.","Pavadinimas","Mato vienetas","Kiekis","Siūloma reikšmė ekonominio naudingumo balui nustatyti (pagal mato vienetą arba Taip/Ne) ","Prekės pavadinimas, kodas/modelis","Gamintojas, šalis","1 vnt. kaina be PVM, Eur","Suma be PVM, Eur"]
["5.","Sistema, deguonies tiekimo"]
["5.1.","Sistema, deguonies tiekimo","vnt.",2,null,null,null,null,{"$f":"IF(ISBLANK(H103),\"\", PRODUCT(D103,H103))","v":""}]
["5.1.1.","Didesnis pagaminamo deguonies kiekis nei 20 l/min.","L"]
["5.1.2.","Didesnis deguonies užpildymo srautas nei 30l/min","L"]
["5.1.3.","Ilgesnis garantinio aptarnavimo laikotarpis nei 24 mėn. ","mėn."]
[null,null,null,null,null,null,null,"Suma be PVM",{"$f":"IF((COUNT(D103:D106)<>COUNT(I103:I106)),\"\", SUM(I103:I106))","v":""},{"$f":"IF((COUNT(D103:D106)<>COUNT(I103:I106)),\"Neužpildytos visų objektų kainos\", \"\")","v":"Neužpildytos visų objektų kainos"}]
[null,null,null,null,null,null,null,"PVM suma"]
[null,null,null,null,null,null,null,"Suma su PVM",{"$f":"IF(ISBLANK(I108), \"\", SUM(I107:I108))","v":""}]
[]
[]
[]
["6. DALIS","KAPNOMETRAS, NEŠIOJAMASIS"]
[]
["Tiekėjo pasiūlymas:"]
["Nr.","Pavadinimas","Mato vienetas","Kiekis","Siūloma reikšmė ekonominio naudingumo balui nustatyti (pagal mato vienetą arba Taip/Ne) ","Prekės pavadinimas, kodas/modelis","Gamintojas, šalis","1 vnt. kaina be PVM, Eur","Suma be PVM, Eur"]
["6.","Kapnometras, nešiojamasis"]
["6.1.","Kapnometras, nešiojamasis","vnt.",2,null,null,null,null,{"$f":"IF(ISBLANK(H118),\"\", PRODUCT(D118,H118))","v":""}]
["6.1.1.","Veikimo temperatūra platesnėse ribose nei nuo 0° C iki +40° C","TAIP/NE"]
["6.1.2.","Ilgesnis garantinio aptarnavimo laikotarpis nei 24 mėn. ","mėn."]
[null,null,null,null,null,null,null,"Suma be PVM",{"$f":"IF((COUNT(D118:D120)<>COUNT(I118:I120)),\"\", SUM(I118:I120))","v":""},{"$f":"IF((COUNT(D118:D120)<>COUNT(I118:I120)),\"Neužpildytos visų objektų kainos\", \"\")","v":"Neužpildytos visų objektų kainos"}]
[null,null,null,null,null,null,null,"PVM suma"]
[null,null,null,null,null,null,null,"Suma su PVM",{"$f":"IF(ISBLANK(I122), \"\", SUM(I121:I122))","v":""}]

{"sheet":"Subtiekėjai ir priedai","index":1,"n_rows":100,"n_cols":11,"rows_kept":100,"cut":false,"hidden":false,"merged":[[47,0,47,9],[52,4,52,9],[50,4,50,9],[52,0,52,3],[50,0,50,3],[38,1,38,6],[37,1,37,6],[36,1,36,6],[35,1,35,6],[43,1,43,6],[42,1,42,6],[41,1,41,6],[40,1,40,6],[39,1,39,6],[32,0,32,9],[34,7,34,9],[34,1,34,6],[45,7,45,9],[42,7,42,9],[37,7,37,9],[36,7,36,9],[35,7,35,9],[44,7,44,9],[43,7,43,9],[41,7,41,9],[40,7,40,9],[39,7,39,9],[38,7,38,9],[45,1,45,6],[44,1,44,6],[1,0,2,10],[30,0,30,9],[14,5,14,7],[8,5,8,7],[7,5,7,7],[6,5,6,7],[14,8,14,9],[8,8,8,9],[7,8,7,9],[6,8,6,9],[14,0,14,1],[8,0,8,1],[7,0,7,1],[6,0,6,1],[14,2,14,4],[8,2,8,4],[7,2,7,4],[9,8,9,9],[6,2,6,4],[5,2,5,4],[5,8,5,9],[4,8,4,9],[4,5,4,7],[4,2,4,4],[4,0,4,1],[5,5,5,7],[5,0,5,1],[9,0,9,1],[13,2,13,4],[12,2,12,4],[11,2,11,4],[10,2,10,4],[9,2,9,4],[13,5,13,7],[12,5,12,7],[11,5,11,7],[10,5,10,7],[9,5,9,7],[16,0,16,10],[18,8,18,9],[18,5,18,7],[18,2,18,4],[18,0,18,1],[13,0,13,1],[12,0,12,1],[11,0,11,1],[10,0,10,1],[13,8,13,9],[12,8,12,9],[11,8,11,9],[10,8,10,9],[23,8,23,9],[22,8,22,9],[21,8,21,9],[20,8,20,9],[19,8,19,9],[28,8,28,9],[27,8,27,9],[26,8,26,9],[25,8,25,9],[24,8,24,9],[23,5,23,7],[22,5,22,7],[21,5,21,7],[20,5,20,7],[19,5,19,7],[28,5,28,7],[27,5,27,7],[26,5,26,7],[25,5,25,7],[24,5,24,7],[23,2,23,4],[22,2,22,4],[21,2,21,4],[20,2,20,4],[19,2,19,4],[28,2,28,4],[27,2,27,4],[26,2,26,4],[25,2,25,4],[24,2,24,4],[23,0,23,1],[22,0,22,1],[21,0,21,1],[20,0,20,1],[19,0,19,1],[28,0,28,1],[27,0,27,1],[26,0,26,1],[25,0,25,1],[24,0,24,1]]}
[]
["Ūkio subjektai (įskaitant kvazisubtiekėjus - fiziniai asmenys, kuriuos ketinama įdarbinti pirkimo laimėjimo atveju), kurių pajėgumais tiekėjas remiasi, kad atitiktų keliamus kvalifikacijos reikalavimus:"]
[]
[]
["Pavadinimas*",null,"Kodas, adresas",null,null,"Perduodami įsipareigojimai",null,null,"Perduodamų įsipareigojimų dalis nuo visos pirkimo sutarties (Eur arba %)",null,"Kval. Reikalavimo Nr."]
[]
[]
[]
[]
[]
[]
[]
[]
[]
[]
[]
["Subtiekėjams / subteikėjams / subrangovams numatomos perduoti veiklos (privaloma nurodyti) ir šių ūkio subjektų pavadinimai (jei žinomi):"]
[]
["Pavadinimas",null,"Kodas, adresas",null,null,"Perduodama veikla*",null,null,"Perduodamos veiklos dalis nuo visos pirkimo sutarties (Eur arba %)"]
[]
[]
[]
[]
[]
[]
[]
[]
[]
[]
[]
[]
[]
["Kartu su pasiūlymu pateikiami šie dokumentai:"]
[]
["Nr.","Dokumento  pavadinimas",null,null,null,null,null,"Dokumentas yra konfidencialus? Taip/Ne"]
["1","Jungtinės veiklos kopija (jei taikoma)"]
["2","Europos bendrasis viešųjų pirkimų dokumentas",null,null,null,null,null,"Ne"]
["3","Subtiekimo sutartis, ketinimų protokolas, preliminarios sutartys ar kiti dokumentai, patvirtinantys, kad laimėjus pirkimą tiekėjui bus prieinami kitų ūkio subjektų ištekliai (jei pasitelkiami kvalifikacijos atitikimui)"]
["4","Pasiūlymo galiojimo užtikrinimas",null,null,null,null,null,"netaikoma"]
["5","Dokumentai reikalaujami pirkimo sąlygų priede \"Kokybės kriterijai ir jų vertinimas\"",null,null,null,null,null,"Ne"]
["6","Pasiūlymo atitikimą pirkimo sąlygų techninei specifikacijai pagrindžiantys dokumentai",null,null,null,null,null,"Ne"]
[7,"Gamintojo įgliojimas, konfidencialu",null,null,null,null,null,"Taip"]
[8,"CE sertifikatas",null,null,null,null,null,"Ne"]
[9,"Inžinieriaus sertifikatas",null,null,null,null,null,"Ne"]
[10,"Techninė specifikacija",null,null,null,null,null,"Ne"]
[]
[]
["Pasiūlyme nurodyta Prekės kaina, išskyrus jos sudedamąsias dalis, subtiekėjai, taip pat kita informacija, kuri teisės aktų nustatyta tvarka turi būti skelbiama arba kitokiu būdu viešai prieinama visuomenei, nėra laikoma konfidencialia informacija. Konfidencialią informaciją sudaro, visų pirma, komercinė (gamybinė) paslaptis ir konfidencialieji pasiūlymų aspektai. Informacija, kurią viešai skelbti įpareigoja Lietuvos Respublikos įstatymai, negali būti tiekėjo nurodoma kaip konfidenciali, todėl, tiekėjui nurodžius tokią informaciją kaip konfidencialią, perkančioji organizacija turi teisę ją skelbti. Jei tiekėjas nenurodo konfidencialios informacijos, laikoma, kad konfidencialios informacijos tiekėjo pasiūlyme nėra. Vadovaujantis Informacijos viešinimo Centrinėje viešųjų pirkimų informacinėje sistemoje tvarkos aprašu, patvirtintu Viešųjų pirkimų tarnybos direktoriaus 2017 m. birželio 19 d. įsakymu Nr. 1S-91 „Dėl Informacijos viešinimo Centrinėje viešųjų pirkimų informacinėje sistemoje tvarkos aprašo patvirtinimo“, perkančioji organizacija laimėjusio dalyvio pasiūlymą, išskyrus informaciją, kurią tiekėjas nurodė kaip konfidencialią, paskelbs CVP IS."]
[]
[]
["Tiekėjo arba jo įgalioto asmens pareigų pavadinimas:",null,null,null,"Direktorius"]
[]
["Pasirašančio asmens vardas ir pavardė:",null,null,null,"Algis Bakutis"]
[]
[]
[]
[]
[]
[]
[]
[]
[]
[]
[]
[]
[]
[]
[]
[]
[]
[]
[]
[]
[]
[]
[]
[]
[]
[]
[]
[]
[]
[]
[]
[]
[]
[]
[]
[]
[]
[]
[]
[]
[]
[]
[]
[]
[]
[]
["1971 2022-05-09 10:31:08"]